bitfinex-derivatives/quotes_BTCF0:USTF0_20250911
["timestamp","ask_amount","ask_price","bid_price","bid_amount"]
[1757599141232,0.03539,114670.0,114650.0,0.0871975]
[1757599141433,0.19642726,114670.0,114660.0,0.3608]
[1757599141634,0.55722726,114670.0,114660.0,0.004]
[1757599142335,0.5579832,114670.0,114660.0,0.004]
[1757599142537,0.1971832,114670.0,114660.0,0.004]
[1757599142842,1.4910964,114670.0,114660.0,0.004]
[1757599143034,1.8518964,114670.0,114660.0,0.004]
[1757599143543,1.8518964,114670.0,114620.0,0.5449478]
[1757599143544,0.03539,114630.0,114620.0,0.00017383]
[1757599143845,0.03539,114630.0,114620.0,0.53632871]
[1757599144040,0.91012339,114640.0,114620.0,0.68480862]
[1757599144341,0.03539,114650.0,114630.0,0.6098056]
[1757599144545,0.03539,114650.0,114640.0,0.42191427]
[1757599145542,0.03539,114660.0,114640.0,0.92091227]
[1757599145844,0.03539,114660.0,114650.0,0.5225932]
[1757599146045,0.03539,114660.0,114650.0,0.58370747]
[1757599146239,0.91775,114670.0,114650.0,0.58370747]
[1757599146438,1.0795432,114670.0,114660.0,0.3608]
[1757599146639,0.03539,114670.0,114660.0,0.3608]
[1757599146946,0.03539,114670.0,114660.0,0.67191427]
[1757599147146,0.03539,114670.0,114660.0,0.6108]
[1757599147737,0.0557485,114680.0,114660.0,0.7725932]
[1757599147938,0.0557485,114680.0,114670.0,0.3608]
[1757599148242,0.0203585,114680.0,114670.0,0.3608]
[1757599148449,0.03539,114690.0,114670.0,0.92088907]
[1757599148643,0.03539,114700.0,114680.0,0.58370747]
[1757599148847,0.03539,114700.0,114690.0,0.42191427]
[1757599149139,0.03539,114700.0,114690.0,0.58370747]
[1757599149541,0.03539,114700.0,114690.0,0.42191427]
[1757599151138,0.03539,114710.0,114690.0,0.92087377]
[1757599151345,0.03539,114720.0,114700.0,0.67086507]
[1757599151550,0.19744803,114740.0,114710.0,0.67085337]
[1757599151752,0.35924123,114740.0,114730.0,0.3608]
[1757599151944,0.03539,114740.0,114730.0,0.19874197]
[1757599152150,0.03539,114740.0,114730.0,0.25985624]
[1757599152450,0.56814788,114750.0,114730.0,0.25985624]
[1757599152645,0.03539,114740.0,114730.0,0.19874197]
[1757599152845,0.03539,114740.0,114720.0,0.3608]
[1757599152846,0.03539,114730.0,114720.0,0.3608]
[1757599153050,0.03539,114720.0,114710.0,0.3608]
[1757599153250,0.03539,114720.0,114710.0,0.5225932]
[1757599153450,0.1971832,114720.0,114710.0,0.42191427]
[1757599153638,0.03539,114720.0,114710.0,0.3608]
[1757599153838,0.1971832,114720.0,114710.0,0.06102466]
[1757599154248,0.03539,114710.0,114700.0,0.42182466]
[1757599154545,0.03539,114710.0,114700.0,0.58361786]
[1757599154745,0.03539,114710.0,114700.0,0.42182466]
[1757599154946,0.1971832,114710.0,114690.0,0.3608]
[1757599155142,0.03539,114700.0,114690.0,0.59886749]
[1757599155338,0.03539,114700.0,114690.0,0.13733799]
[1757599155339,1.4359432,114700.0,114690.0,0.13733799]
[1757599155550,0.03539,114690.0,114680.0,0.0610637]
[1757599155855,0.03539,114690.0,114680.0,0.22290833]
[1757599156150,0.03539,114690.0,114680.0,0.06111513]
[1757599156344,0.03539,114680.0,114670.0,0.42191513]
[1757599157337,0.03539,114680.0,114670.0,0.58370833]
[1757599157550,0.03539,114680.0,114670.0,0.58670833]
[1757599158151,0.03539,114680.0,114670.0,0.58370833]
[1757599158452,0.03539,114680.0,114670.0,0.3628]
[1757599158648,0.03539,114680.0,114670.0,0.5245932]
[1757599158844,0.39619,114700.0,114670.0,0.73086749]
[1757599159150,0.03539,114710.0,114690.0,0.42189804]
[1757599159343,0.03539,114710.0,114700.0,0.40662103]
[1757599159547,0.03539,114710.0,114700.0,0.3608]
[1757599159850,0.03539,114700.0,114690.0,0.06109804]
[1757599160148,0.03539,114690.0,114670.0,0.54677397]
[1757599160340,1.4462232,114680.0,114660.0,0.07627429]
[1757599160544,0.03539,114670.0,114660.0,0.3608]
[1757599160748,0.03539,114670.0,114660.0,0.58373514]
[1757599160949,0.03539,114670.0,114660.0,0.42194194]
[1757599161143,0.03539,114670.0,114660.0,0.58373514]
[1757599161753,0.03539,114670.0,114660.0,0.5255932]
[1757599162244,0.03539,114670.0,114660.0,1.0245746]
[1757599162245,4e-05,114670.0,114660.0,1.0245746]
[1757599162649,4e-05,114670.0,114660.0,1.10284889]
[1757599162950,0.03539,114690.0,114670.0,0.0871771]
[1757599163141,0.03539,114690.0,114680.0,0.58372124]
[1757599163338,0.03539,114700.0,114680.0,0.67089424]
[1757599163554,0.03539,114700.0,114690.0,0.3608]
[1757599164145,0.03539,114700.0,114690.0,0.5225932]
[1757599164450,0.03472,114710.0,114700.0,0.0871578]
[1757599164654,0.03472,114720.0,114700.0,0.0871578]
[1757599164655,0.03472,114730.0,114720.0,0.0871426]
[1757599164851,0.03472,114730.0,114720.0,0.78267365]
[1757599165164,0.03472,114730.0,114700.0,0.16342899]
[1757599165165,0.03472,114720.0,114710.0,0.3608]
[1757599165352,0.03472,114720.0,114710.0,0.58365157]
[1757599165649,0.03472,114720.0,114710.0,0.42185837]
[1757599165856,0.03472,114720.0,114710.0,0.58365157]
[1757599166352,0.03472,114720.0,114710.0,0.3608]
[1757599166551,0.1965132,114720.0,114710.0,0.49811279]
[1757599166846,0.03472,114720.0,114710.0,0.4228385]
[1757599168757,0.1965132,114720.0,114710.0,0.4228385]
[1757599169054,0.28472,114720.0,114710.0,0.06201628]
[1757599169347,0.4465132,114720.0,114710.0,0.06201628]
[1757599169549,0.9691064,114720.0,114710.0,0.001]
[1757599169745,0.64552,114720.0,114710.0,0.04677132]
[1757599169946,0.9691064,114720.0,114710.0,0.04677132]
[1757599170151,0.64552,114720.0,114710.0,0.04677132]
[1757599170350,0.8073132,114720.0,114710.0,0.04577132]
[1757599170654,0.8093132,114720.0,114710.0,0.04577132]
[1757599170954,0.64852,114720.0,114710.0,0.04577132]
[1757599171155,0.9721064,114720.0,114710.0,0.04577132]
[1757599171346,0.8103132,114720.0,114710.0,0.04577132]
[1757599171853,0.9721064,114720.0,114710.0,0.04577132]
[1757599172953,0.9701064,114720.0,114710.0,0.04577132]
[1757599173153,1.6134664,114720.0,114700.0,0.04577132]
[1757599173354,1.6134664,114720.0,114690.0,0.67077438]
[1757599173355,0.03472,114700.0,114690.0,0.67077438]
[1757599173955,0.03472,114700.0,114690.0,0.4479649]
[1757599174156,0.03472,114700.0,114690.0,0.6708526]
[1757599174954,0.03472,114700.0,114690.0,0.6718526]
[1757599175457,0.1965132,114700.0,114690.0,0.42298924]
[1757599175849,0.4465132,114700.0,114690.0,0.001]
[1757599176047,0.4465132,114700.0,114690.0,0.07091658]
[1757599176048,0.8073132,114700.0,114690.0,0.07091658]
[1757599176553,1.54052,114700.0,114690.0,0.07091658]
[1757599176753,0.8073132,114700.0,114690.0,0.07091658]
[1757599176955,1.7023132,114700.0,114690.0,0.07091658]
[1757599177155,1.7023132,114700.0,114690.0,0.01071]
[1757599177851,0.8073132,114700.0,114690.0,0.00971]
[1757599178053,0.39552,114700.0,114690.0,0.08498429]
[1757599178243,1.28984,114700.0,114690.0,0.08498429]
[1757599178449,1.4516332,114700.0,114690.0,0.08498429]
[1757599178649,0.39652,114700.0,114690.0,0.08498429]
[1757599178849,0.5583132,114700.0,114690.0,0.08498429]
[1757599179051,1.4520332,114700.0,114690.0,0.06996491]
[1757599179655,0.5583132,114700.0,114690.0,0.06996491]
[1757599179860,1.0905532,114700.0,114690.0,0.06996491]
[1757599180060,1.0905532,114700.0,114690.0,0.00871]
[1757599180262,1.4513532,114700.0,114690.0,0.00871]
[1757599180561,1.4513532,114700.0,114690.0,0.06995274]
[1757599180752,1.4503532,114700.0,114690.0,0.06995274]
[1757599180953,1.4513532,114700.0,114690.0,0.06995274]
[1757599181361,1.4503532,114700.0,114690.0,0.06995274]
[1757599181762,1.5061832,114700.0,114690.0,0.06995274]
[1757599182061,1.7561832,114700.0,114690.0,0.06995274]
[1757599182762,1.7562232,114700.0,114690.0,0.06995274]
[1757599183154,1.9180164,114700.0,114690.0,0.06995274]
[1757599183558,1.9180164,114700.0,114690.0,0.07095274]
[1757599184062,1.9190164,114700.0,114690.0,0.07095274]
[1757599184261,1.9190164,114700.0,114690.0,0.06995274]
[1757599184452,1.9279205,114700.0,114690.0,0.06995274]
[1757599185155,1.9279205,114700.0,114690.0,0.05467419]
[1757599185357,0.09055,114690.0,114680.0,0.06124274]
[1757599185656,0.09055,114680.0,114670.0,0.06124274]
[1757599185851,0.09055,114670.0,114660.0,0.43707429]
[1757599186055,0.2523432,114670.0,114660.0,0.43707429]
[1757599186460,0.6131432,114670.0,114660.0,0.07627429]
[1757599186766,0.7749364,114670.0,114660.0,0.07627429]
[1757599186962,1.59071,114670.0,114660.0,4.29e-06]
[1757599187264,0.09055,114660.0,114640.0,0.46849968]
[1757599187459,1.0866732,114650.0,114640.0,0.50123968]
[1757599187663,1.1429832,114650.0,114640.0,0.50123968]
[1757599188161,1.1429832,114650.0,114640.0,0.39354]
[1757599188351,0.98119,114650.0,114640.0,0.39354]
[1757599188960,1.1429832,114650.0,114640.0,0.39354]
[1757599189157,1.1429832,114650.0,114640.0,0.39854]
[1757599189362,0.2523432,114650.0,114640.0,0.39854]
[1757599189667,1.1425432,114650.0,114640.0,0.39854]
[1757599190069,1.1425432,114650.0,114640.0,0.005]
[1757599190371,1.1425432,114650.0,114640.0,0.06621677]
[1757599190372,1.5020232,114650.0,114640.0,0.06621677]
[1757599190767,1.5020232,114650.0,114640.0,0.07021677]
[1757599191269,0.6131432,114650.0,114640.0,0.07021677]
[1757599191567,0.8884,114650.0,114640.0,0.87554997]
[1757599191965,0.1965132,114660.0,114640.0,0.96275547]
[1757599192159,0.09235,114660.0,114650.0,0.53867467]
[1757599192359,0.09235,114660.0,114650.0,0.70147677]
[1757599192659,0.1965532,114670.0,114650.0,0.86326997]
[1757599192854,0.0335,114660.0,114650.0,0.45147677]
[1757599193163,0.09113,114660.0,114650.0,0.39026]
[1757599193361,0.97881,114660.0,114650.0,0.39026]
[1757599193554,0.92122,114660.0,114650.0,0.4774579]
[1757599193760,0.0335,114660.0,114650.0,0.39026]
[1757599194260,0.03476,114670.0,114650.0,0.4814574]
[1757599194568,0.03476,114670.0,114660.0,0.45140198]
[1757599194862,0.09239,114670.0,114660.0,0.45140198]
[1757599195256,0.97907,114670.0,114660.0,0.45140198]
[1757599195457,1.1408632,114670.0,114660.0,0.45140198]
[1757599195960,1.1408632,114670.0,114660.0,0.45340198]
[1757599196365,1.5016632,114670.0,114660.0,0.06314198]
[1757599196566,1.5016632,114670.0,114660.0,0.06318954]
[1757599196766,0.6150232,114670.0,114660.0,0.06318954]
[1757599196956,1.5007432,114670.0,114660.0,0.06318954]
[1757599197359,1.7507432,114670.0,114660.0,0.06318954]
[1757599197760,1.7507432,114670.0,114660.0,0.004]
[1757599198161,1.9125364,114670.0,114660.0,0.004]
[1757599198366,0.6150232,114670.0,114660.0,0.004]
[1757599198562,0.09243,114670.0,114660.0,0.03346]
[1757599198759,0.09243,114670.0,114660.0,0.39426]
[1757599199067,0.91936,114670.0,114660.0,0.64426]
[1757599199269,8e-05,114670.0,114660.0,0.96969533]
[1757599199565,8e-05,114670.0,114660.0,0.80790213]
[1757599199760,0.35996,114670.0,114660.0,0.96969533]
[1757599199962,0.35996,114670.0,114660.0,1.00094338]
[1757599200259,8e-05,114670.0,114660.0,1.0734469]
[1757599200463,8e-05,114670.0,114660.0,0.7498605]
[1757599200663,8e-05,114670.0,114660.0,0.75195968]
[1757599200857,8e-05,114670.0,114660.0,0.91375288]
[1757599201164,8e-05,114670.0,114660.0,1.4132437]
[1757599201356,0.1952932,114690.0,114660.0,1.4132437]
[1757599201357,4e-05,114700.0,114690.0,0.02933]
[1757599201557,4e-05,114700.0,114690.0,1.07642508]
[1757599201757,4e-05,114700.0,114690.0,1.48821828]
[1757599201970,4e-05,114700.0,114690.0,1.4116841]
[1757599202167,4e-05,114700.0,114690.0,1.48817416]
[1757599202371,4e-05,114700.0,114690.0,1.08503136]
[1757599202562,4e-05,114700.0,114690.0,1.80343071]
[1757599202762,4e-05,114700.0,114690.0,1.40522391]
[1757599203068,4e-05,114700.0,114690.0,1.23478041]
[1757599203369,4e-05,114700.0,114690.0,1.40439389]
[1757599203773,4e-05,114700.0,114690.0,1.91439389]
[1757599203977,4e-05,114700.0,114690.0,1.40439389]
[1757599204271,0.00104,114700.0,114690.0,1.40439389]
[1757599204569,0.00104,114700.0,114690.0,1.40428448]
[1757599204772,0.00104,114700.0,114690.0,1.90280544]
[1757599204968,4e-05,114700.0,114690.0,1.90480544]
[1757599205170,4e-05,114700.0,114690.0,1.82831538]
[1757599205370,4e-05,114700.0,114690.0,1.41778992]
[1757599205574,4e-05,114700.0,114690.0,1.2964896]
[1757599205868,4e-05,114700.0,114690.0,1.37292456]
[1757599206074,4e-05,114700.0,114690.0,1.42575034]
[1757599206466,4e-05,114700.0,114690.0,1.42475034]
[1757599206666,4e-05,114700.0,114690.0,1.26622488]
[1757599206869,4e-05,114700.0,114690.0,1.42675024]
[1757599207275,0.03354,114700.0,114690.0,0.82410116]
[1757599207468,4e-05,114700.0,114690.0,1.729494]
[1757599207669,4e-05,114700.0,114690.0,1.0923263]
[1757599207875,0.03354,114700.0,114690.0,0.94066348]
[1757599208169,0.03354,114700.0,114690.0,1.72835694]
[1757599208374,4e-05,114700.0,114690.0,1.72835694]
[1757599208573,0.03354,114700.0,114690.0,1.10118894]
[1757599208774,0.03354,114700.0,114690.0,0.94066348]
[1757599208978,4e-05,114700.0,114690.0,1.55835684]
[1757599209270,0.28354,114700.0,114690.0,1.23160829]
[1757599209475,0.86249546,114700.0,114690.0,0.09341164]
[1757599209875,0.86249546,114700.0,114690.0,0.03230861]
[1757599210070,0.86249546,114700.0,114690.0,0.06510303]
[1757599210275,0.86249546,114700.0,114690.0,0.004]
[1757599211181,1.74817546,114700.0,114690.0,0.04986041]
[1757599211572,3.50629546,114700.0,114690.0,0.04986041]
[1757599212182,2.46009,114700.0,114690.0,0.004]
[1757599212383,3.50585546,114700.0,114690.0,0.04986041]
[1757599212785,3.50585546,114700.0,114690.0,0.004]
[1757599213282,0.09117,114700.0,114690.0,0.07756041]
[1757599213471,4e-05,114700.0,114690.0,0.89019336]
[1757599213674,4e-05,114700.0,114690.0,0.9665774]
[1757599214085,4e-05,114700.0,114690.0,0.80605194]
[1757599214280,4e-05,114700.0,114690.0,0.7296679]
[1757599214478,4e-05,114700.0,114690.0,0.46888404]
[1757599214783,4e-05,114700.0,114690.0,0.55605194]
[1757599215086,4e-05,114700.0,114690.0,0.3925]
[1757599215276,4e-05,114700.0,114690.0,0.5407691]
[1757599215478,4e-05,114700.0,114690.0,0.4536012]
[1757599215980,4e-05,114700.0,114690.0,0.5407691]
[1757599216585,4e-05,114700.0,114690.0,0.4796679]
[1757599216886,4e-05,114700.0,114690.0,0.46888404]
[1757599217086,4e-05,114700.0,114690.0,0.8794095]
[1757599217288,0.19406546,114700.0,114690.0,0.46888404]
[1757599217590,0.19406546,114700.0,114690.0,0.004]
[1757599217591,0.86249546,114700.0,114690.0,0.004]
[1757599217798,0.86249546,114700.0,114690.0,0.06510284]
[1757599218296,0.86249546,114700.0,114690.0,0.04985109]
[1757599218598,0.86249546,114700.0,114690.0,0.004]
[1757599218800,0.09113,114690.0,114680.0,0.05456109]
[1757599218998,1.50713546,114690.0,114680.0,0.05456109]
[1757599219390,1.75713546,114690.0,114680.0,0.05456109]
[1757599220090,1.82548708,114690.0,114680.0,0.05756109]
[1757599220291,1.34669,114690.0,114680.0,0.01171]
[1757599220491,1.50721546,114690.0,114680.0,0.01171]
[1757599220699,1.50721546,114690.0,114680.0,0.0606088]
[1757599220892,1.75721546,114690.0,114680.0,0.0606088]
[1757599221292,1.59669,114690.0,114680.0,0.0606088]
[1757599221492,1.75721546,114690.0,114680.0,0.0606088]
[1757599222293,1.76576215,114690.0,114680.0,0.0606088]
[1757599222591,1.75721546,114690.0,114680.0,0.0606088]
[1757599223504,1.59669,114690.0,114680.0,0.0606088]
[1757599223807,1.76608459,114690.0,114680.0,0.0606088]
[1757599224305,1.83489644,114690.0,114680.0,0.0606088]
[1757599224793,1.83489644,114690.0,114660.0,0.06110284]
[1757599224990,0.44915,114670.0,114660.0,0.06110284]
[1757599225291,1.50367546,114670.0,114660.0,0.06110284]
[1757599226296,0.24887546,114670.0,114660.0,0.42390284]
[1757599226504,0.08835,114670.0,114660.0,0.47942284]
[1757599226694,0.8928,114670.0,114660.0,0.72942284]
[1757599226899,0.8928,114670.0,114660.0,0.72953766]
[1757599227111,0.8928,114670.0,114660.0,0.73153766]
[1757599227408,0.8928,114670.0,114660.0,0.73553766]
[1757599227601,1.14167546,114670.0,114660.0,0.73553766]
[1757599227902,1.14167546,114670.0,114660.0,0.37473766]
[1757599228107,0.44915,114670.0,114660.0,0.31352]
[1757599228407,1.50155546,114670.0,114660.0,0.008]
[1757599229097,1.50155546,114670.0,114660.0,0.06921766]
[1757599229098,1.14075546,114670.0,114660.0,0.06921766]
[1757599229502,0.24887546,114670.0,114660.0,0.12473766]
[1757599229701,1.14039546,114670.0,114660.0,0.12473766]
[1757599230406,1.13995546,114670.0,114660.0,0.12473766]
[1757599231305,0.24887546,114670.0,114660.0,0.12473766]
[1757599231614,0.8904,114670.0,114660.0,0.83484546]
[1757599231908,0.8904,114670.0,114660.0,0.67432]
[1757599232109,0.97875,114670.0,114660.0,0.67432]
[1757599232305,1.13927546,114670.0,114660.0,0.42432]
[1757599232610,0.97875,114670.0,114660.0,0.008]
[1757599232903,0.97875,114670.0,114660.0,0.06352]
[1757599232904,1.33955,114670.0,114660.0,0.06352]
[1757599233301,0.97875,114670.0,114660.0,0.06352]
[1757599233503,0.97875,114670.0,114660.0,0.42432]
[1757599233701,0.24887546,114670.0,114660.0,0.50070404]
[1757599233905,0.88968,114670.0,114660.0,0.50070404]
[1757599234101,0.55381546,114680.0,114660.0,0.50070404]
[1757599234308,0.24887546,114680.0,114670.0,0.11670077]
[1757599234501,0.97763,114680.0,114670.0,0.11670077]
[1757599234709,1.13815546,114680.0,114670.0,0.11670077]
[1757599235509,1.49895546,114680.0,114670.0,0.11670077]
[1757599236007,1.49895546,114680.0,114670.0,0.06118077]
[1757599237407,1.49895546,114680.0,114670.0,0.06318077]
[1757599237810,1.49895546,114680.0,114670.0,0.06518077]
[1757599238010,1.74895546,114680.0,114670.0,0.06518077]
[1757599238505,0.03249,114660.0,114650.0,7.7e-07]
[1757599238710,2.01832092,114660.0,114650.0,7.7e-07]
[1757599238906,1.85779546,114660.0,114650.0,7.7e-07]
[1757599239306,1.69727,114660.0,114630.0,0.07638404]
[1757599239512,0.24887546,114640.0,114630.0,0.05552]
[1757599239815,1.13543546,114640.0,114630.0,0.05552]
[1757599240011,1.49623546,114640.0,114630.0,0.07638404]
[1757599240404,1.49623546,114640.0,114620.0,0.60057755]
[1757599240405,0.08835,114630.0,114620.0,0.60057755]
[1757599240607,0.24887546,114630.0,114620.0,0.41649383]
[1757599240813,0.94162,114630.0,114620.0,0.41649383]
[1757599241010,0.88552,114630.0,114620.0,0.86260175]
[1757599241211,0.001,114640.0,114630.0,0.1749735]
[1757599241406,0.001,114640.0,114630.0,0.61242032]
[1757599241603,0.16052546,114650.0,114630.0,0.64446928]
[1757599241911,0.80710546,114650.0,114640.0,0.52515011]
[1757599242314,0.83959546,114650.0,114640.0,0.41632]
[1757599242709,0.67907,114650.0,114640.0,0.05552]
[1757599243117,0.84159546,114650.0,114640.0,0.05552]
[1757599243514,0.68107,114650.0,114640.0,0.05552]
[1757599243711,0.84059546,114650.0,114640.0,0.05552]
[1757599243908,0.84259546,114650.0,114640.0,0.05552]
[1757599245315,0.25187546,114650.0,114640.0,0.41632]
[1757599245614,1.13555546,114650.0,114640.0,0.49291011]
[1757599247115,1.13555546,114650.0,114640.0,0.13211011]
[1757599247317,1.13555546,114650.0,114640.0,0.05552]
[1757599247610,1.13555546,114650.0,114640.0,0.13211011]
[1757599247817,0.97503,114650.0,114640.0,0.13211011]
[1757599248016,1.13555546,114650.0,114640.0,0.13211011]
[1757599248507,1.13555546,114650.0,114640.0,0.07659011]
[1757599248709,1.74635546,114650.0,114640.0,0.06137879]
[1757599249108,0.03249,114640.0,114630.0,0.06137879]
[1757599249312,0.60967546,114640.0,114630.0,0.06137879]
[1757599249516,0.08835,114630.0,114620.0,0.00017383]
[1757599249719,1.56360753,114630.0,114620.0,0.00017383]
[1757599249922,0.76884207,114630.0,114620.0,0.00017383]
[1757599250110,1.56312753,114630.0,114620.0,0.05569383]
[1757599250517,0.92936753,114630.0,114620.0,0.00017383]
[1757599250717,1.81312753,114630.0,114620.0,0.00017383]
[1757599250912,1.81320753,114630.0,114620.0,0.00017383]
[1757599251225,0.93436753,114630.0,114620.0,0.00017383]
[1757599251416,1.81848753,114630.0,114620.0,0.00017383]
[1757599251613,1.56848753,114630.0,114620.0,0.00017383]
[1757599252018,1.57048753,114630.0,114620.0,0.00017383]
[1757599252619,1.56848753,114630.0,114620.0,0.00017383]
[1757599252821,1.81848753,114630.0,114620.0,0.00017383]
[1757599253116,0.05327,114600.0,114590.0,0.44604]
[1757599253324,1.09795546,114600.0,114590.0,0.44604]
[1757599253707,0.21379546,114600.0,114590.0,0.44604]
[1757599253913,0.21379546,114600.0,114590.0,0.053]
[1757599253914,1.49108546,114600.0,114590.0,0.053]
[1757599254114,1.33056,114600.0,114590.0,0.053]
[1757599254312,0.08624,114580.0,114560.0,0.07659011]
[1757599254515,0.08624,114580.0,114570.0,0.44644]
[1757599254516,0.16052546,114580.0,114570.0,0.44644]
[1757599254716,0.87327546,114590.0,114580.0,0.08564]
[1757599255120,0.87327546,114590.0,114580.0,0.33564]
[1757599256217,0.87327546,114590.0,114580.0,0.33664]
[1757599256520,0.57459546,114600.0,114590.0,0.08564]
[1757599256726,1.45683546,114600.0,114590.0,0.08564]
[1757599257220,1.45683546,114600.0,114580.0,0.39444]
[1757599257427,0.21379546,114590.0,114580.0,0.44744]
[1757599257824,0.60756546,114590.0,114580.0,0.054]
[1757599258024,0.60756546,114590.0,114580.0,0.001]
[1757599258224,0.05327,114570.0,114560.0,0.44644]
[1757599258527,1.09491546,114570.0,114560.0,0.08564]
[1757599259218,1.09491546,114570.0,114560.0,0.053]
[1757599259628,1.45571546,114570.0,114560.0,0.303]
[1757599259822,0.05327,114570.0,114560.0,0.305]
[1757599260019,0.21379546,114570.0,114560.0,0.69844]
[1757599260214,0.16052546,114580.0,114570.0,0.03264]
[1757599260414,0.97615546,114580.0,114570.0,0.08564]
[1757599260828,0.21379546,114580.0,114570.0,0.08564]
[1757599261021,0.93299,114580.0,114570.0,0.33564]
[1757599261218,0.16052546,114590.0,114570.0,0.69644]
[1757599261422,0.16052546,114600.0,114590.0,0.08564]
[1757599261726,1.09355546,114600.0,114590.0,0.08564]
[1757599262121,1.45435546,114600.0,114590.0,0.08564]
[1757599262922,1.45435546,114600.0,114590.0,0.053]
[1757599263117,1.45435546,114600.0,114580.0,0.39344]
[1757599263118,1.64885092,114600.0,114580.0,0.39344]
[1757599263328,0.21379546,114590.0,114580.0,0.39344]
[1757599263529,0.21379546,114590.0,114580.0,0.44644]
[1757599263924,0.05327,114590.0,114580.0,0.44644]
[1757599264124,1.03932546,114590.0,114580.0,0.44644]
[1757599264325,1.03932546,114590.0,114580.0,0.69644]
[1757599264526,0.16152546,114600.0,114590.0,0.08564]
[1757599264721,0.001,114600.0,114590.0,0.44644]
[1757599264927,0.001,114600.0,114590.0,0.783684]
[1757599265123,0.001,114600.0,114590.0,0.84484861]
[1757599265323,0.18086498,114610.0,114600.0,0.08564]
[1757599265625,0.02033952,114610.0,114600.0,0.44644]
[1757599265930,0.18086498,114610.0,114600.0,0.44644]
[1757599266120,0.02033952,114610.0,114600.0,0.69644]
[1757599266525,0.18223435,114610.0,114600.0,0.69644]
[1757599266723,0.18223435,114610.0,114600.0,0.7836764]
[1757599267331,0.18223435,114610.0,114600.0,0.84484101]
[1757599267730,0.02033952,114610.0,114600.0,0.84484101]
[1757599267933,0.18223435,114610.0,114600.0,0.84484101]
[1757599268526,0.02033952,114610.0,114600.0,0.84484101]
[1757599268726,0.02033952,114610.0,114600.0,0.84584101]
[1757599268939,0.02033952,114610.0,114600.0,1.00773584]
[1757599269136,0.02033952,114610.0,114600.0,2.39924134]
[1757599269427,0.98217483,114640.0,114630.0,0.08564]
[1757599269628,0.98217483,114640.0,114630.0,0.50758558]
[1757599270231,0.82028,114640.0,114630.0,0.50758558]
[1757599270536,0.87355,114640.0,114630.0,0.50758558]
[1757599270736,1.03544483,114640.0,114630.0,0.50758558]
[1757599271637,0.87355,114640.0,114630.0,0.50758558]
[1757599271839,1.03844483,114640.0,114630.0,0.50758558]
[1757599272138,0.82528,114640.0,114630.0,0.50758558]
[1757599272344,0.98517483,114640.0,114630.0,0.50758558]
[1757599272637,1.03844483,114640.0,114630.0,0.50758558]
[1757599273029,0.82328,114640.0,114630.0,0.50758558]
[1757599273230,0.98317483,114640.0,114630.0,0.50758558]
[1757599273646,0.82128,114640.0,114630.0,0.50758558]
[1757599273951,0.001,114640.0,114630.0,0.75669381]
[1757599274239,0.21516483,114660.0,114650.0,0.08564]
[1757599274439,0.21516483,114660.0,114650.0,0.44644]
[1757599274737,0.21516483,114660.0,114650.0,0.4138]
[1757599274738,1.28702966,114660.0,114650.0,0.4138]
[1757599274935,0.96324,114660.0,114650.0,0.4138]
[1757599275138,1.28702966,114660.0,114650.0,0.4138]
[1757599275337,1.53702966,114660.0,114650.0,0.4138]
[1757599275644,1.53902966,114660.0,114650.0,0.4138]
[1757599275939,1.60972185,114660.0,114650.0,0.4138]
[1757599277138,1.61072185,114660.0,114650.0,0.4138]
[1757599279638,1.25396219,114660.0,114650.0,0.44644]
[1757599279938,1.57775185,114660.0,114650.0,0.44644]
[1757599280947,1.32775185,114660.0,114650.0,0.44644]
[1757599281448,1.16585702,114660.0,114650.0,0.44644]
[1757599281646,1.19896702,114660.0,114650.0,0.4138]
[1757599281840,1.19896702,114660.0,114650.0,0.4446]
[1757599282045,1.36086185,114660.0,114650.0,0.4446]
[1757599282442,1.00396219,114660.0,114650.0,0.4446]
[1757599282642,1.32775185,114660.0,114650.0,0.4446]
[1757599282940,1.36086185,114660.0,114650.0,0.3608]
[1757599283147,1.61086185,114660.0,114650.0,0.3608]
[1757599283445,0.05452,114640.0,114630.0,0.51012036]
[1757599283646,0.92712,114640.0,114630.0,0.449]
[1757599283847,0.21641483,114640.0,114630.0,0.5362134]
[1757599284047,0.92764,114650.0,114640.0,0.0308]
[1757599284247,1.08953483,114650.0,114640.0,0.44716]
[1757599284642,0.87312,114650.0,114640.0,0.69716]
[1757599284848,1.03501483,114650.0,114640.0,0.69716]
[1757599285040,0.87312,114650.0,114640.0,0.69716]
[1757599285235,1.09053483,114650.0,114640.0,0.69716]
[1757599285440,0.92864,114650.0,114640.0,0.44716]
[1757599285643,1.09053483,114650.0,114640.0,0.44716]
[1757599285837,1.12364483,114650.0,114640.0,0.3608]
[1757599286240,1.12364483,114650.0,114640.0,0.41636]
[1757599286241,0.96175,114650.0,114640.0,0.41636]
[1757599286436,1.12364483,114650.0,114640.0,0.41636]
[1757599286948,1.48444483,114650.0,114630.0,0.45556036]
[1757599287244,0.41141966,114640.0,114630.0,0.11668036]
[1757599287449,0.24952483,114640.0,114630.0,0.05556]
[1757599288045,0.24952483,114640.0,114620.0,0.45456036]
[1757599288247,0.08763,114640.0,114630.0,0.05556]
[1757599288452,1.12192483,114640.0,114630.0,0.05656]
[1757599288640,1.12192483,114640.0,114630.0,0.44816]
[1757599288849,0.24952483,114640.0,114630.0,0.41736]
[1757599289046,1.08873483,114640.0,114630.0,0.44816]
[1757599289351,1.08873483,114640.0,114630.0,0.50928036]
[1757599289549,0.92684,114640.0,114630.0,0.50928036]
[1757599289746,1.08873483,114640.0,114630.0,0.50928036]
[1757599290150,0.95995,114640.0,114630.0,0.11768036]
[1757599290342,1.28373966,114640.0,114630.0,0.06212036]
[1757599290547,1.89453966,114640.0,114630.0,0.001]
[1757599290949,1.89453966,114640.0,114610.0,0.06112036]
[1757599291254,0.24952483,114620.0,114610.0,0.06112036]
[1757599291453,1.48204483,114620.0,114610.0,0.06112036]
[1757599292047,1.73204483,114620.0,114610.0,0.06112036]
[1757599292657,1.73204483,114620.0,114610.0,0.06412036]
[1757599292658,1.20939,114620.0,114610.0,0.06412036]
[1757599292951,0.05456,114620.0,114610.0,0.51128036]
[1757599293158,4e-05,114620.0,114610.0,0.70016]
[1757599293455,4e-05,114620.0,114610.0,0.003]
[1757599293456,1.38305966,114620.0,114610.0,0.003]
[1757599293757,1.05927,114620.0,114610.0,0.004]
[1757599293949,1.22116483,114620.0,114610.0,0.004]
[1757599294254,0.03311,114610.0,114600.0,0.0613322]